bitfinex-derivatives/quotes_SOLF0:USTF0_20250706
["timestamp","ask_amount","ask_price","bid_price","bid_amount"]
[1751835352039,9.72073057,151.51,151.48,6.5998]
[1751835352242,4.23120541,151.5,151.48,6.5998]
[1751835352546,9.72073057,151.51,151.48,6.5998]
[1751835352841,4.2312054,151.5,151.48,6.5998]
[1751835353041,9.72073057,151.51,151.48,6.5998]
[1751835353437,4.23107922,151.5,151.48,6.5998]
[1751835353739,9.72073057,151.51,151.48,6.5998]
[1751835359241,6.5988,151.51,151.48,6.5998]
[1751835360346,6.5988,151.51,151.48,9.72173057]
[1751835365151,4.26778258,151.5,151.48,9.72173057]
[1751835365351,6.5988,151.51,151.48,9.72173057]
[1751835365552,4.26778258,151.5,151.48,9.72173057]
[1751835365755,6.5988,151.51,151.48,9.72173057]
[1751835365943,4.26778258,151.5,151.48,9.72173057]
[1751835366143,6.5988,151.51,151.48,9.72173057]
[1751835366343,4.26821305,151.5,151.48,9.72173057]
[1751835366549,6.5988,151.51,151.48,9.72173057]
[1751835366750,4.26821305,151.5,151.48,9.72173057]
[1751835366951,6.5988,151.51,151.48,9.72173057]
[1751835367153,4.26821305,151.5,151.48,9.72173057]
[1751835367353,6.5988,151.51,151.48,9.72173057]
[1751835367555,4.26870897,151.5,151.48,9.72173057]
[1751835367755,6.5988,151.51,151.48,9.72173057]
[1751835367955,4.26871014,151.5,151.48,9.72173057]
[1751835368155,6.5988,151.51,151.48,9.72173057]
[1751835368357,4.28019073,151.5,151.48,9.72173057]
[1751835368556,6.5988,151.51,151.48,6.5998]
[1751835368855,4.28019073,151.5,151.48,9.72173057]
[1751835369055,6.5988,151.51,151.48,9.72173057]
[1751835369255,4.28085424,151.5,151.48,9.72173057]
[1751835369452,4.28101635,151.49,151.48,9.72173057]
[1751835371159,4.2509474,151.49,151.48,9.72173057]
[1751835371861,6.5988,151.51,151.48,9.72173057]
[1751835372154,8.75904597,151.5,151.48,9.72173057]
[1751835372358,4.25094522,151.49,151.48,9.72173057]
[1751835375263,4.25125575,151.49,151.48,9.72173057]
[1751835376362,4.25125575,151.49,151.48,6.5998]
[1751835381370,6.5991,151.5,151.48,6.5998]
[1751835381572,4.27334932,151.49,151.48,6.5998]
[1751835381870,6.5988,151.51,151.48,6.5998]
[1751835382069,16.99039277,151.5,151.48,6.5998]
[1751835382270,4.27335476,151.49,151.48,6.5998]
[1751835386974,4.27021708,151.49,151.48,6.5998]
[1751835390976,6.5991,151.5,151.48,6.5998]
[1751835391274,4.25913016,151.49,151.48,6.5998]
[1751835391677,4.27009344,151.49,151.48,6.5998]
[1751835400580,4.23899709,151.49,151.48,6.5998]
[1751835401281,6.5988,151.51,151.49,6.5994]
[1751835401482,4.23943412,151.5,151.49,6.5994]
[1751835404192,8.71878149,151.5,151.49,6.5994]
[1751835405989,8.71878149,151.5,151.48,6.5997]
[1751835406184,6.5988,151.51,151.48,6.5997]
[1751835406185,4.23943412,151.49,151.48,6.5997]
[1751835409890,6.5988,151.51,151.48,6.5997]
[1751835410090,8.72193849,151.5,151.48,6.5997]
[1751835410290,4.24174136,151.49,151.48,6.5997]
[1751835410491,4.24180521,151.49,151.48,6.5997]
[1751835414693,6.5988,151.51,151.48,6.5997]
[1751835414895,4.24203284,151.5,151.48,6.5997]
[1751835415100,6.5988,151.51,151.48,6.5997]
[1751835415301,4.24203196,151.5,151.48,6.5997]
[1751835415504,6.5988,151.51,151.48,6.5997]
[1751835415704,4.24203196,151.5,151.48,6.5997]
[1751835415897,6.5988,151.51,151.48,6.5997]
[1751835416201,4.24203196,151.5,151.48,6.5997]
[1751835416403,6.5988,151.51,151.48,9.72155313]
[1751835416604,4.24194428,151.5,151.48,9.72155313]
[1751835416804,6.5988,151.51,151.48,9.72155313]
[1751835417000,4.24194428,151.5,151.48,9.72155313]
[1751835417304,6.5988,151.51,151.48,9.72155313]
[1751835417506,4.24186343,151.5,151.48,9.72155313]
[1751835417705,6.5988,151.51,151.48,9.72155313]
[1751835417902,4.24186343,151.5,151.48,9.72155313]
[1751835418101,6.5988,151.51,151.48,9.72155313]
[1751835418301,4.24178592,151.5,151.48,9.72155313]
[1751835418600,6.5988,151.51,151.48,9.72155313]
[1751835418801,4.2414437,151.5,151.48,9.72155313]
[1751835419003,6.5988,151.51,151.48,9.72155313]
[1751835419600,4.24141808,151.5,151.48,9.72155313]
[1751835419797,6.5988,151.51,151.48,9.72155313]
[1751835419997,4.2412992,151.5,151.48,6.5997]
[1751835420207,6.5988,151.51,151.48,6.5997]
[1751835420405,4.24168613,151.5,151.48,6.5997]
[1751835420604,6.5988,151.51,151.48,6.5997]
[1751835420801,4.24168613,151.5,151.48,6.5997]
[1751835421001,6.5988,151.51,151.48,6.5997]
[1751835421307,4.24168613,151.5,151.49,6.5995]
[1751835421507,4.24162051,151.5,151.49,6.5995]
[1751835427715,6.5986,151.51,151.49,6.5995]
[1751835427913,4.25124516,151.5,151.49,6.5995]
[1751835430210,8.73712239,151.5,151.49,6.5995]
[1751835431013,4.25124516,151.5,151.49,6.5995]
[1751835431314,8.73711379,151.5,151.49,6.5995]
[1751835431506,8.73711379,151.5,151.48,9.72165313]
[1751835431809,4.25124516,151.49,151.48,9.72165313]
[1751835437020,4.25124516,151.49,151.48,6.5998]
[1751835437225,6.5986,151.51,151.48,6.5998]
[1751835437521,8.73980939,151.5,151.48,6.5998]
[1751835437721,4.25339914,151.49,151.48,6.5998]
[1751835440429,6.5986,151.51,151.48,6.5998]
[1751835440724,8.74116913,151.5,151.48,6.5998]
[1751835441021,4.25406088,151.49,151.48,6.5998]
[1751835447126,4.25380156,151.49,151.48,6.5998]
[1751835447626,4.25388885,151.49,151.48,6.5998]
[1751835448426,6.5991,151.5,151.48,6.5998]
[1751835454834,4.25372899,151.49,151.48,6.5998]
[1751835455932,8.73801039,151.49,151.48,6.5998]
[1751835457132,4.25372899,151.49,151.48,6.5998]
[1751835457337,8.73691806,151.49,151.48,6.5998]
[1751835458036,8.73691806,151.49,151.47,9.72195313]
[1751835458233,4.25372899,151.48,151.45,3.12185313]
[1751835458439,4.26125712,151.47,151.45,3.12185313]
[1751835458637,3.12185313,151.49,151.45,3.12185313]
[1751835458934,4.26125716,151.48,151.45,3.12185313]
[1751835459137,4.26125716,151.47,151.45,3.12185313]
[1751835459437,3.12185313,151.49,151.44,3.12185313]
[1751835459638,10.86036106,151.48,151.46,6.6007]
[1751835459832,4.26036106,151.47,151.46,6.6007]
[1751835460838,9.72155313,151.49,151.46,6.6007]
[1751835461038,4.22697185,151.48,151.46,6.6007]
[1751835461241,9.72155313,151.49,151.46,6.6007]
[1751835461438,4.22639329,151.48,151.46,6.6007]
[1751835461637,9.72155313,151.49,151.46,6.6007]
[1751835461834,4.22639329,151.48,151.46,6.6007]
[1751835462039,9.72155313,151.49,151.46,6.6007]
[1751835462348,4.22589798,151.48,151.46,6.6007]
[1751835462540,4.22555883,151.47,151.46,6.6007]
[1751835462939,9.72155313,151.49,151.46,6.6007]
[1751835463140,4.22536136,151.48,151.46,6.6007]
[1751835463450,3.12268275,151.51,151.47,3.12268275]
[1751835463665,16.85801505,151.5,151.48,3.12268275]
[1751835463942,8.70408089,151.49,151.48,9.72258275]
[1751835464641,4.22522235,151.49,151.48,9.72258275]
[1751835468548,9.72138275,151.51,151.48,9.72258275]
[1751835468747,12.3972056,151.5,151.48,9.72258275]
[1751835468948,9.72138275,151.51,151.48,9.72258275]
[1751835469254,4.23584159,151.5,151.48,9.72258275]
[1751835469447,9.72138275,151.51,151.48,9.72258275]
[1751835469750,3.12268275,151.52,151.49,6.5995]
[1751835469946,8.68876871,151.51,151.49,6.5995]
[1751835470153,4.23559961,151.5,151.49,6.5995]
[1751835470353,4.23559961,151.5,151.48,3.12268275]
[1751835470354,4.23559961,151.5,151.48,9.72238275]
[1751835470652,6.5986,151.51,151.48,9.72238275]
[1751835470953,4.23583716,151.5,151.48,9.72238275]
[1751835471158,6.5986,151.51,151.48,9.72238275]
[1751835471453,4.18192146,151.5,151.48,9.72238275]
[1751835471647,6.5986,151.51,151.48,9.72238275]
[1751835471848,4.1820044,151.5,151.48,9.72238275]
[1751835472045,6.5986,151.51,151.48,9.72238275]
[1751835472456,4.19285592,151.5,151.48,9.72238275]
[1751835472656,6.5986,151.51,151.48,9.72238275]
[1751835472951,4.19285592,151.5,151.48,9.72238275]
[1751835473156,6.5986,151.51,151.48,9.72238275]
[1751835473356,4.19289565,151.5,151.48,9.72238275]
[1751835473555,6.5986,151.51,151.48,9.72238275]
[1751835473755,4.19289565,151.5,151.48,9.72238275]
[1751835473956,6.5986,151.51,151.48,9.72238275]
[1751835474254,4.19289274,151.5,151.48,9.72238275]
[1751835474448,6.5986,151.51,151.48,9.72238275]
[1751835474653,4.19250291,151.5,151.48,9.72238275]
[1751835474849,6.5986,151.51,151.48,9.72238275]
[1751835475050,4.19241975,151.5,151.48,9.72238275]
[1751835475250,6.5986,151.51,151.48,9.72238275]
[1751835475447,4.19246097,151.5,151.48,9.72238275]
[1751835475648,6.5986,151.51,151.48,9.72238275]
[1751835475848,4.19246097,151.5,151.48,9.72238275]
[1751835476051,6.5986,151.51,151.48,9.72238275]
[1751835476250,4.19250295,151.5,151.48,9.72238275]
[1751835476456,6.5986,151.51,151.48,9.72238275]
[1751835476657,4.19182644,151.5,151.48,9.72238275]
[1751835476856,6.5986,151.51,151.48,9.72238275]
[1751835477154,4.19182644,151.5,151.48,9.72238275]
[1751835477356,6.5986,151.51,151.48,9.72238275]
[1751835477552,4.20276087,151.5,151.48,9.72238275]
[1751835477755,6.5986,151.51,151.48,9.72238275]
[1751835478054,4.20276087,151.5,151.48,9.72238275]
[1751835478253,6.5986,151.51,151.48,9.72238275]
[1751835478454,4.20212623,151.5,151.48,9.72238275]
[1751835478755,6.5986,151.51,151.48,9.72238275]
[1751835478964,4.20212623,151.5,151.48,9.72238275]
[1751835479255,6.5986,151.51,151.48,9.72238275]
[1751835479458,4.20217067,151.5,151.48,9.72238275]
[1751835479656,6.5986,151.51,151.48,9.72238275]
[1751835479853,4.20217067,151.5,151.48,9.72238275]
[1751835480054,6.5986,151.51,151.48,9.72238275]
[1751835480255,4.2021685,151.5,151.49,6.5995]
[1751835480560,4.2021685,151.5,151.49,9.72218275]
[1751835480965,3.12268275,151.52,151.43,67.85140418]
[1751835481162,22.3750506,151.51,151.48,3.12268275]
[1751835481352,4.20216967,151.5,151.47,3.12268275]
[1751835481556,9.72138275,151.51,151.47,3.12268275]
[1751835481752,4.20216967,151.5,151.47,3.12268275]
[1751835481952,9.72138275,151.51,151.48,6.5997]
[1751835482157,4.12199981,151.5,151.48,6.5997]
[1751835482359,9.72138275,151.51,151.48,6.5997]
[1751835482559,4.12203057,151.5,151.48,6.5997]
[1751835482758,9.72138275,151.51,151.48,6.5997]
[1751835483059,4.12202334,151.5,151.48,6.5997]
[1751835483259,9.72138275,151.51,151.48,6.5997]
[1751835483560,8.59814962,151.5,151.48,6.5997]
[1751835483864,9.72138275,151.51,151.48,6.5997]
[1751835484064,8.59884969,151.5,151.48,6.5997]
[1751835484366,9.72138275,151.51,151.48,6.5997]
[1751835484566,8.59902894,151.5,151.48,6.5997]
[1751835484768,9.72138275,151.51,151.48,6.5997]
[1751835484963,8.59902894,151.5,151.48,6.5997]
[1751835485163,6.5987,151.51,151.48,6.5997]
[1751835485363,8.59906908,151.5,151.48,6.5997]
[1751835485564,6.5987,151.51,151.48,6.5997]
[1751835485865,8.59920891,151.5,151.48,6.5997]
[1751835486064,6.5987,151.51,151.48,6.5997]
[1751835486264,8.63455255,151.5,151.48,6.5997]
[1751835486464,6.5987,151.51,151.48,6.5997]
[1751835486665,8.63470057,151.5,151.48,6.5997]
[1751835486964,6.5987,151.51,151.48,6.5997]
[1751835487164,8.63470057,151.5,151.48,6.5997]
[1751835487366,6.5987,151.51,151.48,6.5997]
[1751835487569,8.63561146,151.5,151.48,6.5997]
[1751835487767,6.5987,151.51,151.48,6.5997]
[1751835487969,8.63421689,151.5,151.48,6.5997]
[1751835488166,6.5987,151.51,151.48,6.5997]
[1751835488365,8.63430546,151.5,151.48,6.5997]
[1751835488569,6.5987,151.51,151.48,6.5997]
[1751835488767,8.63444545,151.5,151.48,6.5997]
[1751835489064,6.5987,151.51,151.48,6.5997]
[1751835489266,8.63455206,151.5,151.48,6.5997]
[1751835489466,6.5987,151.51,151.48,6.5997]
[1751835489767,8.62199823,151.5,151.48,6.5997]
[1751835490068,6.5987,151.51,151.48,6.5997]
[1751835490258,8.62212352,151.5,151.48,6.5997]
[1751835490464,6.5987,151.51,151.48,6.5997]
[1751835490670,8.62371687,151.5,151.48,6.5997]
[1751835490870,6.5987,151.51,151.48,6.5997]
[1751835491066,8.62371973,151.5,151.48,6.5997]
[1751835491267,6.5987,151.51,151.48,6.5997]
[1751835491467,8.62370884,151.5,151.48,6.5997]
[1751835491766,6.5987,151.51,151.48,6.5997]
[1751835491961,8.62370884,151.5,151.48,6.5997]
[1751835492164,6.5987,151.51,151.48,6.5997]
[1751835492371,8.6124809,151.5,151.48,6.5997]
[1751835492571,6.5987,151.51,151.48,6.5997]
[1751835492766,8.61261707,151.5,151.48,6.5997]
[1751835492969,6.5987,151.51,151.48,6.5997]
[1751835493168,8.61261707,151.5,151.48,6.5997]
[1751835493466,6.5987,151.51,151.48,6.5997]
[1751835493668,8.61264929,151.5,151.48,6.5997]
[1751835493867,6.5987,151.51,151.48,6.5997]
[1751835494171,16.79568254,151.5,151.48,6.5997]
[1751835494371,6.5987,151.51,151.48,6.5997]
[1751835494571,16.78323143,151.5,151.48,6.5997]
[1751835494769,6.5987,151.51,151.48,6.5997]
[1751835494967,16.78323143,151.5,151.48,6.5997]
[1751835495168,6.5987,151.51,151.48,6.5997]
[1751835495370,16.78302197,151.5,151.48,6.5997]
[1751835495570,6.5987,151.51,151.48,6.5997]
[1751835495770,16.78325334,151.5,151.48,6.5997]
[1751835496070,6.5987,151.51,151.48,6.5997]
[1751835496270,16.77215673,151.5,151.48,6.5997]
[1751835496470,6.5987,151.51,151.48,6.5997]
[1751835496670,16.77239168,151.5,151.48,6.5997]
[1751835496871,6.5987,151.51,151.48,6.5997]
[1751835497074,16.77239168,151.5,151.48,6.5997]
[1751835497373,6.5987,151.51,151.48,6.5997]
[1751835497574,16.76365051,151.5,151.48,6.5997]
[1751835497775,6.5987,151.51,151.48,6.5997]
[1751835497970,16.76365051,151.5,151.48,6.5997]
[1751835498276,6.5987,151.51,151.48,6.5997]
[1751835498577,16.76353166,151.5,151.48,6.5997]
[1751835498774,6.5987,151.51,151.48,6.5997]
[1751835499072,16.76349825,151.5,151.48,6.5997]
[1751835499372,6.5987,151.51,151.48,6.5997]
[1751835499573,16.76426785,151.5,151.48,6.5997]
[1751835499772,6.5987,151.51,151.48,6.5997]
[1751835499970,16.76426785,151.5,151.48,6.5997]
[1751835500173,6.5987,151.51,151.48,6.5997]
[1751835500380,16.76417623,151.5,151.48,6.5997]
[1751835500579,6.5987,151.51,151.48,6.5997]
[1751835500781,16.76435423,151.5,151.48,6.5997]
[1751835500973,6.5987,151.51,151.48,6.5997]
[1751835501176,16.76435423,151.5,151.48,6.5997]
[1751835501373,6.5987,151.51,151.48,6.5997]
[1751835501582,16.76435579,151.5,151.48,6.5997]
[1751835501882,6.5987,151.51,151.48,6.5997]
[1751835502082,16.76435577,151.5,151.48,9.72154368]
[1751835502273,6.5987,151.51,151.48,9.72154368]
[1751835502477,16.76435733,151.5,151.48,9.72154368]
[1751835502673,6.5987,151.51,151.49,6.5993]
[1751835503784,6.5987,151.51,151.49,9.72114368]
[1751835503982,6.5987,151.51,151.49,9.72068336]
[1751835505484,6.5984,151.52,151.49,9.72068336]
[1751835505685,8.58977437,151.51,151.49,9.72068336]
[1751835505879,6.5984,151.52,151.49,9.72068336]
[1751835506078,8.58977437,151.51,151.49,9.72068336]
[1751835506384,9.71978336,151.52,151.49,9.72068336]
[1751835506584,8.58992741,151.51,151.49,9.72068336]
[1751835506785,9.71978336,151.52,151.49,9.72068336]
[1751835507086,8.58992741,151.51,151.49,9.72068336]
[1751835507286,9.71978336,151.52,151.49,9.72068336]
[1751835507486,8.59221658,151.51,151.49,9.72068336]
[1751835507681,9.71978336,151.52,151.49,9.72068336]
[1751835507882,8.59221658,151.51,151.49,9.72068336]
[1751835508183,9.71978336,151.52,151.49,9.72068336]
[1751835508386,8.59247615,151.51,151.49,9.72068336]
[1751835508586,9.71978336,151.52,151.49,9.72068336]
[1751835508886,8.59247615,151.51,151.49,9.72068336]
[1751835509185,9.71978336,151.52,151.49,9.72068336]
[1751835509487,8.5925206,151.51,151.49,9.72068336]
[1751835509689,9.71978336,151.52,151.49,9.72068336]
[1751835509985,8.59182743,151.51,151.49,9.72068336]
[1751835510186,9.71978336,151.52,151.49,9.72068336]
[1751835510485,8.59193989,151.51,151.49,9.72068336]
[1751835510687,9.71978336,151.52,151.49,9.72068336]
[1751835510886,4.1011275,151.51,151.49,9.72068336]
[1751835511086,9.71978336,151.52,151.49,9.72068336]
[1751835511288,8.59231299,151.51,151.49,9.72068336]
[1751835511487,6.5984,151.52,151.49,9.72068336]
[1751835511786,8.60304407,151.51,151.49,9.72068336]
[1751835511986,6.5984,151.52,151.49,9.72068336]
[1751835512186,8.60304407,151.51,151.49,9.72068336]
[1751835512382,6.5984,151.52,151.49,9.72068336]
[1751835512578,15.20193309,151.51,151.49,3.12138336]
[1751835512882,6.5986,151.51,151.48,9.72108336]
[1751835521993,6.5986,151.51,151.48,6.5997]
[1751835522289,6.5986,151.51,151.48,9.72108336]
[1751835526694,6.5986,151.51,151.49,6.5994]
[1751835527894,9.71978336,151.52,151.49,6.5994]
[1751835528096,8.60609435,151.51,151.49,6.5994]
[1751835528291,9.71978336,151.52,151.49,6.5994]
[1751835528491,8.60611978,151.51,151.49,9.72078336]
[1751835528793,6.5984,151.52,151.49,9.72078336]
[1751835528997,8.60611382,151.51,151.49,9.72071322]
[1751835529298,6.5984,151.52,151.49,6.5994]
[1751835529493,8.60615945,151.51,151.49,6.5994]
[1751835529793,6.5984,151.52,151.49,6.5994]
[1751835529993,8.60615945,151.51,151.49,6.5994]
[1751835530294,6.5984,151.52,151.49,6.5994]
[1751835530497,8.60624847,151.51,151.49,6.5994]
[1751835530692,6.5984,151.52,151.49,6.5994]
[1751835530893,8.60624345,151.51,151.49,6.5994]
[1751835531095,6.5984,151.52,151.49,6.5994]
[1751835531294,8.60624345,151.51,151.49,6.5994]
[1751835531496,6.5984,151.52,151.49,6.5994]
[1751835531697,8.60633029,151.51,151.49,6.5994]
[1751835531995,6.5984,151.52,151.49,6.5994]
[1751835532188,8.60633029,151.51,151.49,6.5994]
[1751835532392,6.5984,151.52,151.5,6.5989]
[1751835532597,8.60643835,151.51,151.5,6.5989]
[1751835535096,8.60643835,151.51,151.49,6.5994]
[1751835535291,6.5984,151.52,151.49,6.5994]
[1751835535492,8.60711023,151.51,151.49,6.5994]
[1751835535789,6.5984,151.52,151.49,6.5994]
[1751835535987,8.60711023,151.51,151.49,6.5994]
[1751835536188,6.5984,151.52,151.49,6.5994]
[1751835536387,8.60718034,151.51,151.49,6.5994]
[1751835536592,6.5984,151.52,151.49,6.5994]
[1751835536788,8.60716822,151.51,151.49,6.5994]
[1751835537090,6.5984,151.52,151.49,6.5994]
[1751835537499,8.60798003,151.51,151.49,6.5994]
[1751835537800,6.5984,151.52,151.49,6.5994]
[1751835537998,8.60807194,151.51,151.49,6.5994]
[1751835538198,6.5984,151.52,151.49,6.5994]
[1751835538399,8.60816204,151.51,151.49,6.5994]
[1751835538596,6.5986,151.51,151.49,6.5994]
[1751835539098,6.5986,151.51,151.48,9.72101322]
[1751835540402,4.10405982,151.5,151.48,9.72101322]
[1751835540697,6.5986,151.51,151.48,9.72101322]
[1751835540898,4.10418355,151.5,151.48,9.72101322]
[1751835541100,6.5986,151.51,151.48,9.72101322]
[1751835541290,4.10419321,151.5,151.48,9.72101322]
[1751835541490,6.5986,151.51,151.48,9.72101322]
[1751835541690,4.10446694,151.5,151.48,9.72101322]
[1751835541890,6.5986,151.51,151.49,6.5995]
[1751835542091,4.10446694,151.5,151.49,6.5995]
[1751835542795,4.10476594,151.5,151.49,6.5995]
[1751835543402,8.61035792,151.5,151.49,6.5995]
[1751835545101,6.5986,151.51,151.49,6.5995]
[1751835547203,4.11002923,151.5,151.49,6.5995]
[1751835547404,4.11052514,151.5,151.49,6.5995]
[1751835548404,8.61703341,151.5,151.49,6.5995]
[1751835552206,8.61415599,151.5,151.49,6.5995]
[1751835555210,6.5986,151.51,151.49,6.5995]
[1751835555408,4.09639172,151.5,151.49,6.5995]
[1751835555613,8.61235135,151.5,151.49,6.5995]
[1751835556814,8.61235135,151.5,151.48,9.72115405]
[1751835557113,6.5986,151.51,151.48,9.72115405]
[1751835557315,8.61340554,151.5,151.48,9.72115405]
[1751835557512,6.5986,151.51,151.48,9.72115405]
[1751835557712,8.61338056,151.5,151.48,9.72115405]
[1751835557912,6.5986,151.51,151.48,9.72115405]
[1751835558114,8.61338056,151.5,151.48,9.72115405]
[1751835558315,6.5986,151.51,151.48,9.72115405]
[1751835558614,8.61327242,151.5,151.48,9.72115405]
[1751835558811,6.5986,151.51,151.48,9.72115405]
[1751835559012,8.61327839,151.5,151.48,9.72115405]
[1751835559213,6.5986,151.51,151.48,9.72115405]
[1751835559411,8.61317549,151.5,151.48,9.72115405]
[1751835559615,6.5986,151.51,151.48,9.72115405]
[1751835559811,8.61317549,151.5,151.48,9.72115405]
[1751835560116,6.5983,151.52,151.49,6.5995]
[1751835560305,16.74063802,151.51,151.49,6.5995]
[1751835560507,8.60112743,151.5,151.49,6.5995]
[1751835561214,8.60112743,151.5,151.49,9.72095405]
[1751835561517,4.50402991,151.5,151.49,9.72095405]
[1751835561715,8.60108101,151.5,151.49,9.72095405]
[1751835561916,8.60108101,151.5,151.49,9.72082805]
[1751835563814,4.0970511,151.5,151.49,9.72082805]
[1751835564016,8.60063734,151.5,151.49,9.72082805]
[1751835564616,4.50358624,151.5,151.49,9.72082805]
[1751835564815,8.60025648,151.5,151.49,9.72082805]
[1751835565317,8.60025312,151.5,151.49,9.72082805]
[1751835565512,8.61294924,151.5,151.49,9.72082805]
[1751835566216,8.61294924,151.5,151.49,6.5995]
[1751835567614,8.61295757,151.5,151.49,6.5995]
[1751835570517,8.61295757,151.5,151.48,3.12144318]
[1751835570819,6.5986,151.51,151.48,9.72114318]
[1751835571019,8.62398476,151.5,151.48,9.72114318]
[1751835571213,6.5986,151.51,151.48,9.72114318]
[1751835571416,8.61133152,151.5,151.48,9.72114318]
[1751835571615,6.5986,151.51,151.48,9.72114318]
[1751835571812,8.61133152,151.5,151.49,6.5995]
[1751835574224,4.10766486,151.5,151.49,6.5995]
[1751835574517,8.59881943,151.5,151.49,6.5995]
[1751835580127,15.19781943,151.5,151.44,18.54549775]
[1751835580314,242.82839036,151.54,151.45,3.12271697]
[1751835580516,3.12271697,151.49,151.45,3.12271697]
[1751835580716,8.61558982,151.48,151.45,9.72381697]
[1751835580918,3.12271697,151.48,151.45,3.12271697]
[1751835581125,6.6014,151.45,151.42,6.6022]
[1751835581324,3.12271697,151.45,151.42,3.12271697]
[1751835581520,4.1192719,151.44,151.41,3.12271697]
[1751835581723,6.6019,151.44,151.41,9.72541697]
[1751835582030,9.72461697,151.44,151.41,9.72541697]
[1751835582324,6.6019,151.44,151.41,9.72541697]
[1751835583027,6.6021,151.43,151.41,9.72541697]
[1751835583218,3.12271697,151.44,151.4,3.12271697]
[1751835583424,188.84,151.48,151.4,3.12271697]
[1751835583425,3.12271697,151.45,151.4,3.12271697]
[1751835583624,3.12271697,151.45,151.41,3.12271697]
[1751835583829,53.82839036,151.49,151.44,3.12271697]
[1751835584030,16.68104365,151.48,151.46,3.12271697]
[1751835584233,47.72271697,151.49,151.46,3.12271697]
[1751835584428,3.12271697,151.47,151.42,3.12271697]
[1751835584634,3.12271697,151.44,151.41,3.12271697]
[1751835584827,6.602,151.44,151.41,9.72541697]
[1751835586332,3.12271697,151.44,151.4,9.72581697]
[1751835586935,6.6021,151.43,151.41,3.12271697]
[1751835587930,6.6021,151.43,151.41,9.72561697]
[1751835589540,9.72451697,151.44,151.41,9.72561697]
[1751835589932,9.72451697,151.44,151.41,6.6029]
[1751835590339,6.6028,151.42,151.39,6.6037]
[1751835590536,3.12271697,151.43,151.39,3.12271697]
[1751835591236,9.72511697,151.43,151.4,6.6034]
[1751835592038,9.72511697,151.43,151.41,6.6029]
[1751835592441,9.72511697,151.43,151.4,3.12271697]
[1751835592941,6.6024,151.43,151.4,9.72581697]
[1751835593644,9.72511697,151.43,151.4,9.72581697]
[1751835596745,6.6024,151.43,151.4,9.72581697]
[1751835597249,6.6024,151.43,151.4,6.6031]
[1751835598251,9.72511697,151.43,151.4,6.6031]
[1751835601155,6.6024,151.43,151.4,9.72581697]
[1751835602349,2.3463,151.46,151.41,3.12271697]
[1751835602555,5.35821697,151.47,151.43,3.12271697]
[1751835602757,44.6,151.49,151.45,3.12271697]
[1751835602951,6.6003,151.48,151.46,3.12271697]
[1751835603146,44.6,151.49,151.47,3.12271697]
[1751835603350,44.6,151.49,151.4,44.62]
[1751835603553,44.6,151.49,151.46,3.12271697]
[1751835604152,51.1996,151.49,151.46,9.72321697]
[1751835604851,47.72271697,151.49,151.44,3.12271697]
[1751835605057,3.12271697,151.47,151.43,3.12271697]
[1751835606354,6.6012,151.45,151.4,44.62]
[1751835606559,9.72391697,151.45,151.41,3.12271697]
[1751835606854,3.12271697,151.45,151.41,3.12271697]
[1751835607759,6.6017,151.44,151.41,9.72541697]
[1751835607954,3.12271697,151.45,151.41,3.12271697]
[1751835608457,9.72421697,151.45,151.42,6.6025]
[1751835608858,6.6015,151.45,151.42,6.6025]
[1751835610054,2.164,151.48,151.41,4.88189294]
[1751835611058,6.6009,151.46,151.43,6.6017]
[1751835611460,6.6005,151.47,151.43,6.6017]
[1751835613356,6.6008,151.46,151.43,6.6017]
[1751835613562,6.6008,151.46,151.44,6.6016]
[1751835613861,2.164,151.48,151.44,6.6016]
[1751835615063,6.6006,151.47,151.44,6.6016]
[1751835623261,6.6008,151.46,151.44,6.6016]
[1751835623463,6.6008,151.46,151.43,6.6019]
[1751835627572,6.6008,151.46,151.44,6.6015]
[1751835627766,6.6008,151.46,151.38,63.20549775]
[1751835627963,6.6008,151.46,151.41,4.88189294]
[1751835628172,6.6008,151.46,151.43,6.6018]
[1751835628570,6.6008,151.46,151.41,4.88189294]
[1751835628763,6.6005,151.47,151.44,6.6015]
[1751835630774,9.72422015,151.47,151.44,6.6015]
[1751835632578,6.6008,151.46,151.44,6.6015]
[1751835633479,6.6008,151.46,151.43,6.6019]
[1751835634879,6.6008,151.46,151.44,6.6016]
[1751835652600,44.66,151.48,151.45,3.12364594]
[1751835652805,8.44367538,151.47,151.45,3.12364594]
[1751835652999,51.2601,151.48,151.45,3.12364594]